[Event "EIWCC 2017"]
[Site "Riga"]
[Date "2017.04.19"]
[Round "8"]
[White "Bulmaga, Irina"]
[Black "Arakhamia-Grant, Ketevan"]
[Result "1-0"]
[ECO "A49"]
[WhiteElo "2394"]
[BlackElo "2374"]
[Annotator "NA"]
[PlyCount "85"]
[EventDate "2017.??.??"]
[EventType "swiss"]
[EventCountry "LAT"]
[SourceTitle "playchess.com"]
[Source "ChessBase"]
[SourceQuality "1"]
[TimeControl "40/5400+30:1800+30"]

{[%evp 8,77,17,24,34,35,33,37,30,25,22,12,17,14,41,15,8,-22,8,10,12,22,41,43,91,92,100,93,104,81,132,90,116,92,110,133,164,164,184,176,221,164,151,170,32767,32767,32767,32767,222,235,264,32767,32767,298,302,32767,32767,32767,431,466,468,32767,32767,32767,32767,575,32767,32767,32767,32767,849,1128]} 1. d4 {[%emt 0:00:00]} Nf6 {[%emt 0:00:43]} 2. Nf3 {[%emt 0:00:00]} g6 {[%emt 0:01:06]} 3. g3 {[%emt 0:00:00]} Bg7 {[%emt 0:01:04]} 4. Bg2 {[%emt 0:00:00]} c5 {[%emt 0:07:55]} 5. d5 {[%emt 0:02:55] A49: 1 d4 Nf6 2 Nf3 g6 3 g3: Anti-King's Indian systems} (5. c4 cxd4 6. Nxd4 O-O 7. Nc3 Nc6 8. O-O Qa5 9. e3 d6 10. Bd2 Qc5 11. Nxc6 bxc6 12. b3 d5 13. cxd5 cxd5 14. Rc1 Qd6 15. e4 Bg4 16. Qe1 dxe4 17. Nxe4 Nxe4 {1-0 (57) Vachier Lagrave,M (2811)-Ragger,M (2694) Novi Sad 2016}) 5... d6 {[%emt 0:00:49]} 6. c4 {[%emt 0:00:17]} b5 {[%emt 0:02:05]} 7. cxb5 {[%emt 0:03:26]} Qa5+ {[%emt 0:00:24]} 8. Nfd2 {[%emt 0:03:11]} Qxb5 {[%emt 0:03:32]} 9. Nc3 {[%emt 0:00:12]} Qa6 {[%emt 0:06:56] LiveBook: 5 Games} 10. O-O {[%emt 0:02:13]} O-O {[%emt 0:00:09]} 11. Re1 {[%emt 0:05:38]} Nbd7 {[%emt 0:00:56]} 12. Qc2 $146 {[%emt 0:09:00]} Rb8 {[%emt 0:07:32]} 13. b3 {[%emt 0:07:43]} e6 {[%emt 0:04:12]} 14. Bb2 {[%emt 0:01:38]} Nb6 {[%emt 0:05:29]} 15. dxe6 {[%emt 0:03:24]} fxe6 {[%emt 0:10:59]} 16. Nce4 {[%emt 0:01:54]} Nbd5 {[%emt 0:10:39]} 17. Nxf6+ {[%emt 0:07:57]} Bxf6 {[%emt 0:00:56]} 18. Bxf6 {[%emt 0:10:40]} Rxf6 {[%emt 0:00:37]} 19. Ne4 {[%emt 0:02:01]} Rf8 {[%emt 0:00:50]} 20. Red1 {[%emt 0:00:18]} Bb7 {[%emt 0:02:38]} 21. Ng5 {[%emt 0:07:43]} Rbe8 {[%emt 0:02:52]} 22. Qc4 {[%emt 0:02:22]} Rf5 {[%emt 0:13:18]} 23. Qh4 {[%emt 0:09:30]} ({Not} 23. Bxd5 exd5 24. Qh4 Re7 $17) 23... Nf6 {[%emt 0:03:53]} 24. Bxb7 {[%emt 0:03:26]} Qxb7 {[%emt 0:00:10]} 25. Rxd6 {[%emt 0:01:20]} Rxg5 {[%emt 0:01:51]} 26. Qxg5 {[%emt 0:00:07]} Ne4 {[%emt 0:00:07]} 27. Qe5 {[%emt 0:00:26]} Nxd6 {[%emt 0:00:10]} 28. Qxd6 {[%emt 0:00:06]} Qe4 {[%emt 0:04:00]} 29. Qxc5 {[%emt 0:01:33]} Qxe2 {[%emt 0:00:15]} 30. Qxa7 {[%emt 0:00:10]} e5 {[%emt 0:00:34]} 31. Qe3 {[%emt 0:02:27]} Qc2 {[%emt 0:03:05]} 32. Qc1 {[%emt 0:00:20]} Qf5 {[%emt 0:00:52]} 33. a4 {[%emt 0:00:29]} e4 {[%emt 0:01:40]} 34. Qc4+ {[%emt 0:01:45]} Kg7 {[%emt 0:00:37]} 35. Qd4+ {[%emt 0:00:37]} Kh6 {[%emt 0:00:16]} 36. Re1 {[%emt 0:00:18]} g5 {[%emt 0:03:02]} 37. b4 {[%emt 0:01:08]} Kg6 {[%emt 0:01:35]} 38. b5 {[%emt 0:00:44]} h5 {[%emt 0:00:28]} 39. Rc1 $18 {[%emt 0:01:18]} h4 {[%emt 0:00:39]} 40. Rc6+ {[%emt 0:00:00]} Re6 {[%emt 0:01:01]} 41. Qd7 {[%emt 0:01:57]} Rxc6 {[%emt 0:01:57]} 42. Qxf5+ {[%emt 0:00:07]} Kxf5 {[%emt 0:00:04]} 43. bxc6 {[%emt 0:00:06]} 1-0

[Event "EIWCC 2017"]
[Site "Riga"]
[Date "2017.04.19"]
[Round "8"]
[White "Charochkina, Daria"]
[Black "Isgandarova, Khayala"]
[Result "1-0"]
[ECO "A45"]
[WhiteElo "2381"]
[BlackElo "2211"]
[Annotator "NA"]
[PlyCount "73"]
[EventDate "2017.??.??"]
[EventType "swiss"]
[EventCountry "LAT"]
[SourceTitle "playchess.com"]
[Source "ChessBase"]
[SourceQuality "1"]
[TimeControl "40/5400+30:1800+30"]

{[%evp 8,73,0,5,38,18,29,15,19,45,47,35,49,36,47,50,69,18,40,-20,-21,-51,-35,-64,-42,-88,324,32767,32767,32767,32767,447,577,375,291,32767,32767,338,301,340,381,387,32767,32767,32767,32767,467,818,816,32767,32767,32767,32767,787,32767,32767,1334,32767,32767,32767,32767,32767,32767,1497,1411,32767,5285,6211]} 1. d4 {[%emt 0:00:00]} Nf6 {[%emt 0:00:13]} 2. Bf4 {[%emt 0:00:00]} g6 {[%emt 0:00:06]} 3. Nc3 {[%emt 0:00:00]} d5 {[%emt 0:01:20] A45: Trompowsky Attack} 4. e3 {[%emt 0:00:06]} Bg7 {[%emt 0:00:12]} 5. h4 {[%emt 0:00:22]} c5 {[%emt 0:10:03]} (5... h5 6. Nf3 Bg4 7. Be2 c6 8. Ne5 Bxe2 9. Qxe2 Nbd7 10. O-O-O Nxe5 11. Bxe5 {1-0 (49) Karjakin,S (2785)-Li,C (2720) Doha 2016}) 6. Nb5 {[%emt 0:01:46]} Na6 $1 {[%emt 0:00:14] LiveBook: 6 Games} 7. c3 {[%emt 0:00:11]} O-O {[%emt 0:03:21]} 8. Be2 {[%emt 0:00:19]} h5 {[%emt 0:00:17]} 9. Nf3 {[%emt 0:01:08]} Ng4 {[%emt 0:11:38]} 10. a4 $146 {[%emt 0:11:03]} (10. Ne5 Nxe5 11. dxe5 {1-0 (40) Tologontegin,S (2354)-Nedev,T (2484) Tromsoe 2014}) 10... Bd7 {[%emt 0:09:15]} 11. O-O {[%emt 0:07:54]} Qb6 {[%emt 0:19:28]} 12. a5 {[%emt 0:19:26]} Qc6 {[%emt 0:01:05]} 13. c4 {[%emt 0:03:03]} dxc4 {[%emt 0:05:35]} 14. Bxc4 {[%emt 0:01:06]} cxd4 {[%emt 0:03:40]} 15. Rc1 {[%emt 0:00:14]} dxe3 {[%emt 0:03:52]} 16. fxe3 {[%emt 0:09:02] [#]} e5 $2 {[%emt 0:06:04]} (16... Be6 $1 $17 {[%cal Re6c4] keeps the pressure on.} 17. Bd3 Qd5) 17. Bxf7+ {[%emt 0:12:23]} Rxf7 {[%emt 0:00:06]} 18. Rxc6 {[%emt 0:00:03]} Bxc6 {[%emt 0:00:13]} 19. Nd6 {[%emt 0:02:18]} exf4 {[%emt 0:17:55]} (19... Rc7 {is a better defense.} 20. Bg3 Nc5) 20. Qb3 {[%emt 0:04:17]} Raf8 {[%emt 0:00:27]} 21. Nxf7 {[%emt 0:02:44]} Nc5 {[%emt 0:00:19]} 22. Qc4 {[%emt 0:04:48]} Nxe3 {[%emt 0:01:46]} 23. Qxc5 {[%emt 0:00:06]} Nxf1 {[%emt 0:00:23]} 24. N7g5 {[%emt 0:09:41]} ({Less strong is} 24. Kxf1 Rxf7 25. Ng5 (25. Qxa7 Bf6 26. b4 Kg7 $16) 25... Rf5 26. Qxa7 f3 27. gxf3 Bxf3 28. Qb8+ (28. Nxf3 Rxf3+ 29. Ke1 Rf7 $16) 28... Rf8 $18) 24... Bxf3 {[%emt 0:02:23]} 25. gxf3 {[%emt 0:01:51]} Ng3 {[%emt 0:00:05]} 26. Qc4+ {[%emt 0:04:05]} Kh8 {[%emt 0:00:31]} 27. Qe6 {[%emt 0:00:14]} Bf6 {[%emt 0:00:55]} 28. Qd6 {[%emt 0:00:56]} Kg8 {[%emt 0:01:27]} 29. Qd5+ {[%emt 0:00:53]} Kh8 {[%emt 0:00:10]} 30. Qxb7 {[%emt 0:02:30]} Bxg5 {[%emt 0:00:24]} 31. hxg5 {[%emt 0:00:02]} Rf5 {[%emt 0:00:26]} 32. Qb8+ {[%emt 0:00:54]} Kg7 {[%emt 0:00:27]} 33. Qxa7+ {[%emt 0:00:06]} Rf7 {[%emt 0:00:23]} 34. Qd4+ {[%emt 0:00:04]} Kh7 {[%emt 0:00:02]} 35. Qc4 {[%emt 0:00:22]} Re7 {[%emt 0:00:42]} 36. Qb4 {[%emt 0:01:21]} Re3 {[%emt 0:00:39]} 37. a6 $18 {[%emt 0:01:06]} 1-0

[Event "EIWCC 2017"]
[Site "Riga"]
[Date "2017.04.19"]
[Round "8"]
[White "Badelka, Olga"]
[Black "Utiatskaja, Irina"]
[Result "1-0"]
[ECO "A36"]
[WhiteElo "2362"]
[BlackElo "2152"]
[Annotator "NA"]
[PlyCount "69"]
[EventDate "2017.??.??"]
[EventType "swiss"]
[EventCountry "LAT"]
[SourceTitle "playchess.com"]
[Source "ChessBase"]
[SourceQuality "1"]
[TimeControl "40/5400+30:1800+30"]

{[%evp 18,64,5,-4,8,-41,32767,32767,42,57,79,48,91,60,67,86,134,151,32767,32767,32767,32767,32767,94,111,75,120,98,293,32767,32767,32767,32767,233,278,280,291,271,321,345,32767,410,401,400,499,511,1031,1103,1366]} 1. c4 {[%emt 0:00:00]} g6 {[%emt 0:00:05]} 2. Nc3 {[%emt 0:00:00]} Bg7 3. g3 {[%emt 0:00:05]} c5 {[%emt 0:00:52]} 4. Bg2 {[%emt 0:00:05]} Nc6 {[%emt 0:00:25]} 5. d3 {[%emt 0:00:18]} e6 {[%emt 0:01:13]} 6. e4 {[%emt 0:04:40]} d6 {[%emt 0:00:52]} 7. Nge2 {[%emt 0:00:13]} Nge7 {[%emt 0:00:04]} 8. O-O {[%emt 0:00:06]} O-O {[%emt 0:00:03]} 9. Rb1 {[%emt 0:01:02]} b6 {[%emt 0:00:33]} 10. Be3 {[%emt 0:04:01] A36: Symmetrical English vs ...g6: 4 Bg2 Bg7} (10. a3 Bb7 11. b4 Qd7 12. Bg5 h6 13. Be3 Nd4 14. f4 f5 15. Qd2 Kh7 16. Rbe1 Rae8 17. Bf2 Nec6 18. b5 Nxe2+ 19. Nxe2 Nd4 20. Nxd4 cxd4 21. exf5 gxf5 22. Bxb7 Qxb7 {0-1 (30) Dominguez Perez,L (2732)-Wojtaszek,R (2727) Huaian 2016}) 10... Nd4 {[%emt 0:01:37]} 11. e5 {[%emt 0:11:39] LiveBook: 7 Games} Nxe2+ {[%emt 0:03:56]} 12. Qxe2 {[%emt 0:00:31]} d5 $146 {[%emt 0:01:32]} (12... Rb8 $1 $11 13. exd6 Nf5 14. Ne4 Nxe3 15. fxe3 f5 16. Nf2 Qxd6 17. Rfd1 h5 18. Nh3 {0-1 (60) Schischke,R (2360)-Skomorokhin,R (2460) Berlin 1993}) 13. Bg5 {[%emt 0:02:04]} Bb7 {[%emt 0:04:20]} 14. f4 {[%emt 0:02:03]} Re8 {[%emt 0:05:51]} (14... Qd7 $14) 15. Nb5 {[%emt 0:08:31]} Qd7 {[%emt 0:34:58]} 16. Nd6 {[%emt 0:00:26]} Red8 {[%emt 0:00:31]} ({Black should play} 16... Rf8 $14) 17. Rbe1 {[%emt 0:06:02]} Bf8 {[%emt 0:16:16]} 18. cxd5 {[%emt 0:02:33]} Bxd5 {[%emt 0:00:05]} 19. Bxd5 {[%emt 0:00:14]} Nxd5 {[%emt 0:00:12]} 20. Bxd8 {[%emt 0:00:27]} Bxd6 {[%emt 0:00:03]} 21. Bh4 {[%emt 0:01:25]} ({Of course not} 21. exd6 $6 Rxd8 22. a3 (22. Qe5 Nb4 23. Re3 Qxd6 $11) 22... Qxd6 $11) 21... Bf8 {[%emt 0:00:06]} 22. a3 {[%emt 0:00:29]} c4 $2 {[%emt 0:03:37]} (22... Be7 $16 {was called for.}) 23. dxc4 {[%emt 0:04:51]} Bc5+ {[%emt 0:00:05]} 24. Kh1 {[%emt 0:00:07]} Ne3 {[%emt 0:00:05]} 25. Rf3 {[%emt 0:00:30]} (25. Qf3 $142 Rc8 26. Rxe3 Bxe3 27. Qxe3) 25... Qc6 {[%emt 0:00:31]} 26. b4 {[%emt 0:04:16]} Bd4 {[%emt 0:06:05]} 27. h3 {[%emt 0:02:28]} Nxc4 {[%emt 0:06:42]} 28. Kh2 {[%emt 0:01:35]} b5 {[%emt 0:01:27]} 29. Rd3 {[%emt 0:00:55]} Bb6 {[%emt 0:01:39]} 30. a4 {[%emt 0:02:11]} a6 {[%emt 0:03:46]} 31. a5 {[%emt 0:00:36]} Ba7 {[%emt 0:01:22]} 32. Red1 {[%emt 0:01:57]} h6 $18 {[%emt 0:04:47]} 33. Rd8+ {[%emt 0:01:49]} Kh7 {[%emt 0:00:08]} 34. Rxa8 {[%emt 0:00:37]} Qxa8 {[%emt 0:00:09]} 35. Rd8 {[%emt 0:00:18]} 1-0

[Event "EIWCC 2017"]
[Site "Riga"]
[Date "2017.04.19"]
[Round "8"]
[White "Gara, Anita"]
[Black "Petrenko, Svetlana"]
[Result "1-0"]
[ECO "B22"]
[WhiteElo "2354"]
[BlackElo "2136"]
[Annotator "ChessBase"]
[PlyCount "89"]
[EventDate "2017.??.??"]
[EventType "swiss"]
[EventCountry "LAT"]
[SourceTitle "playchess.com"]
[Source "ChessBase"]
[SourceQuality "1"]
[TimeControl "40/5400+30:1800+30"]

1. e4 {[%emt 0:00:00]} c5 {[%emt 0:00:05]} 2. c3 {[%emt 0:00:00]} d6 {[%emt 0:01:07]} 3. d4 {[%emt 0:00:00]} Nd7 {[%emt 0:00:35]} 4. Nf3 {[%emt 0:00:22]} Qc7 {[%emt 0:01:04]} 5. Bd3 {[%emt 0:01:17]} h6 {[%emt 0:01:13]} 6. O-O {[%emt 0:01:47]} Ngf6 {[%emt 0:01:29]} 7. b4 {[%emt 0:00:58]} c4 {[%emt 0:07:11]} 8. Bc2 {[%emt 0:00:09]} e5 {[%emt 0:02:16]} 9. a4 {[%emt 0:03:25]} a6 {[%emt 0:04:18]} 10. Qe2 {[%emt 0:07:12]} Rb8 {[%emt 0:01:51]} 11. a5 {[%emt 0:04:09]} Be7 {[%emt 0:02:55]} 12. Re1 {[%emt 0:12:34]} O-O {[%emt 0:00:24]} 13. d5 {[%emt 0:01:49]} b5 {[%emt 0:04:54]} 14. axb6 {[%emt 0:07:25]} Nxb6 {[%emt 0:00:09]} 15. h3 {[%emt 0:00:54]} Nfd7 {[%emt 0:06:53]} 16. Ra5 {[%emt 0:08:01]} Bb7 {[%emt 0:18:40]} 17. g4 {[%emt 0:02:55]} g5 {[%emt 0:02:43]} 18. Nbd2 {[%emt 0:00:55]} Rfc8 {[%emt 0:01:59]} 19. Nf1 {[%emt 0:00:36]} Nf8 {[%emt 0:00:28]} 20. Ng3 {[%emt 0:02:11]} Ng6 {[%emt 0:00:07]} 21. Nf5 {[%emt 0:00:52]} Bf8 {[%emt 0:00:15]} 22. Kh2 {[%emt 0:06:10]} f6 {[%emt 0:00:44]} 23. Rg1 {[%emt 0:03:14]} Re8 {[%emt 0:04:50]} 24. Be3 {[%emt 0:02:33]} Rbc8 {[%emt 0:07:19]} 25. Nd2 {[%emt 0:00:16]} Nf4 {[%emt 0:05:53]} 26. Qf3 {[%emt 0:00:50]} Nd7 {[%emt 0:08:54]} 27. Rga1 {[%emt 0:02:53]} Ra8 {[%emt 0:06:30]} 28. Nf1 {[%emt 0:00:21]} Bg7 {[%emt 0:05:33]} 29. N1g3 {[%emt 0:00:35]} Nf8 {[%emt 0:00:13]} 30. Bxf4 {[%emt 0:12:23]} gxf4 {[%emt 0:00:02]} 31. Nh5 {[%emt 0:00:27]} Re7 {[%emt 0:01:14]} 32. Nxe7+ {[%emt 0:01:35]} Qxe7 {[%emt 0:00:02]} 33. b5 {[%emt 0:00:07]} Ra7 {[%emt 0:04:23]} 34. bxa6 {[%emt 0:00:21]} Bc8 {[%emt 0:00:03]} 35. Qe2 {[%emt 0:04:34]} Qc7 {[%emt 0:00:14]} 36. R5a4 {[%emt 0:00:10]} Nd7 {[%emt 0:01:08]} 37. Qxc4 {[%emt 0:02:52]} Nc5 {[%emt 0:00:10]} 38. Ra5 {[%emt 0:01:11]} Qb6 {[%emt 0:00:48]} 39. Rb5 {[%emt 0:02:35]} Qc7 {[%emt 0:00:33]} 40. Rxc5 {[%emt 0:00:00]} Qxc5 {[%emt 0:00:19]} 41. Qxc5 {[%emt 0:02:56]} dxc5 {[%emt 0:00:02]} 42. Nxg7 {[%emt 0:00:37]} Kxg7 {[%emt 0:00:04]} 43. Bd3 {[%emt 0:00:36]} h5 {[%emt 0:03:01]} 44. gxh5 {[%emt 0:03:08]} Kh6 {[%emt 0:00:29]} 45. Bb5 {[%emt 0:00:32]} 1-0

[Event "EIWCC 2017"]
[Site "Riga"]
[Date "2017.04.19"]
[Round "8"]
[White "Milliet, Sophie"]
[Black "Krumina, Linda"]
[Result "1-0"]
[ECO "B91"]
[WhiteElo "2352"]
[BlackElo "2090"]
[Annotator "ChessBase"]
[PlyCount "119"]
[EventDate "2017.??.??"]
[EventType "swiss"]
[EventCountry "LAT"]
[SourceTitle "playchess.com"]
[Source "ChessBase"]
[SourceQuality "1"]
[TimeControl "40/5400+30:1800+30"]

1. e4 {[%emt 0:00:00]} c6 {[%emt 0:00:09]} 2. d4 {[%emt 0:00:00]} d5 {[%emt 0:00:04]} 3. e5 {[%emt 0:00:00]} Bf5 {[%emt 0:00:10]} 4. Nf3 {[%emt 0:00:30]} e6 {[%emt 0:00:19]} 5. Be2 {[%emt 0:00:16]} h6 {[%emt 0:03:05]} 6. O-O {[%emt 0:01:00]} Nd7 {[%emt 0:03:20]} 7. Nbd2 {[%emt 0:01:16]} Ne7 {[%emt 0:01:11]} 8. Nb3 {[%emt 0:01:00]} Bh7 {[%emt 0:05:55]} 9. a4 {[%emt 0:08:31]} Qc7 {[%emt 0:01:56]} 10. a5 {[%emt 0:04:35]} a6 {[%emt 0:01:42]} 11. Bd2 {[%emt 0:03:07]} c5 {[%emt 0:07:52]} 12. c4 {[%emt 0:24:44]} cxd4 {[%emt 0:17:33]} 13. Nbxd4 {[%emt 0:05:27]} Nxe5 {[%emt 0:01:41]} 14. Nxe5 {[%emt 0:01:41]} Qxe5 {[%emt 0:00:29]} 15. Qa4+ {[%emt 0:00:57]} Kd8 {[%emt 0:00:48]} 16. Be3 {[%emt 0:03:58]} Nc8 {[%emt 0:13:48]} 17. cxd5 {[%emt 0:15:09]} Bd6 {[%emt 0:04:18]} 18. g3 {[%emt 0:01:33]} exd5 {[%emt 0:01:09]} 19. Rfd1 {[%emt 0:03:12]} Ke7 {[%emt 0:16:31]} 20. Qb3 {[%emt 0:03:15]} Rb8 {[%emt 0:00:46]} 21. f4 {[%emt 0:11:20]} Qf6 {[%emt 0:01:08]} 22. Qxd5 {[%emt 0:00:32]} Re8 {[%emt 0:02:15]} 23. Bf3 {[%emt 0:02:20]} Kf8 {[%emt 0:01:28]} 24. Bf2 {[%emt 0:00:08]} Ne7 {[%emt 0:03:39]} 25. Ne6+ {[%emt 0:01:37]} fxe6 {[%emt 0:00:38]} 26. Qxd6 {[%emt 0:00:08]} Kg8 {[%emt 0:01:13]} 27. Re1 {[%emt 0:02:01]} Bf5 {[%emt 0:02:26]} 28. Bd4 {[%emt 0:02:34]} Qg6 {[%emt 0:00:30]} 29. Bb6 {[%emt 0:00:20]} Bh3 {[%emt 0:03:33]} 30. Rac1 {[%emt 0:01:59]} Nf5 {[%emt 0:00:23]} 31. Qe5 {[%emt 0:00:39]} Kh8 {[%emt 0:03:05]} 32. Kf2 {[%emt 0:00:14]} h5 {[%emt 0:02:27]} 33. Bc7 {[%emt 0:01:24]} Ra8 {[%emt 0:00:35]} 34. Bxb7 {[%emt 0:00:33]} Ra7 {[%emt 0:00:34]} 35. Bf3 {[%emt 0:00:45]} Re7 {[%emt 0:00:42]} 36. Bb6 {[%emt 0:00:40]} Rad7 {[%emt 0:00:10]} 37. Re2 {[%emt 0:00:12]} Rd3 {[%emt 0:00:40]} 38. Rc3 {[%emt 0:00:38]} Rd1 {[%emt 0:00:24]} 39. Re1 {[%emt 0:00:20]} Rd2+ {[%emt 0:00:26]} 40. Re2 {[%emt 0:00:00]} Rd1 {[%emt 0:00:39]} 41. Bg2 {[%emt 0:12:16]} Bxg2 {[%emt 0:07:21]} 42. Kxg2 {[%emt 0:01:38]} h4 {[%emt 0:03:17]} 43. Re1 {[%emt 0:10:55]} Rd2+ {[%emt 0:00:52]} 44. Bf2 {[%emt 0:01:32]} Kh7 {[%emt 0:03:32]} 45. Qe4 {[%emt 0:02:17]} Rxb2 {[%emt 0:02:08]} 46. Re2 h3+ {[%emt 0:03:04]} 47. Kf1 {[%emt 0:04:17]} Rb1+ {[%emt 0:01:22]} 48. Be1 {[%emt 0:00:29]} Reb7 {[%emt 0:02:09]} 49. Qxe6 {[%emt 0:00:53]} Qxe6 {[%emt 0:01:11]} 50. Rxe6 {[%emt 0:00:02]} R7b2 {[%emt 0:00:24]} 51. Re2 {[%emt 0:00:55]} Rxe2 {[%emt 0:00:54]} 52. Kxe2 {[%emt 0:00:01]} Nd4+ {[%emt 0:00:32]} 53. Ke3 {[%emt 0:02:02]} Nf5+ {[%emt 0:00:06]} 54. Kd2 {[%emt 0:00:25]} Rb2+ {[%emt 0:00:44]} 55. Rc2 {[%emt 0:00:14]} Rxc2+ {[%emt 0:00:37]} 56. Kxc2 {[%emt 0:00:04]} Ne3+ {[%emt 0:00:46]} 57. Kd3 {[%emt 0:01:13]} Ng4 {[%emt 0:00:02]} 58. Kc4 {[%emt 0:00:35]} Nxh2 {[%emt 0:00:10]} 59. g4 {[%emt 0:00:18]} Nf1 {[%emt 0:00:16]} 60. Kd4 1-0

[Event "EIWCC 2017"]
[Site "Riga"]
[Date "2017.04.19"]
[Round "8"]
[White "Osmak, Iulija"]
[Black "Tsolakidou, Stavroula"]
[Result "1-0"]
[ECO "A45"]
[WhiteElo "2348"]
[BlackElo "2395"]
[Annotator "ChessBase"]
[PlyCount "148"]
[EventDate "2017.??.??"]
[EventType "swiss"]
[EventCountry "LAT"]
[SourceTitle "playchess.com"]
[Source "ChessBase"]
[SourceQuality "1"]
[TimeControl "40/5400+30:1800+30"]

1. Nf3 {[%emt 0:00:00]} d5 {[%emt 0:00:28]} 2. c4 {[%emt 0:00:11]} d4 {[%emt 0:02:59]} 3. d3 {[%emt 0:01:40]} Nc6 {[%emt 0:01:48]} 4. g3 {[%emt 0:00:21]} e5 {[%emt 0:02:22]} 5. Bg2 {[%emt 0:00:26]} Bb4+ {[%emt 0:23:55]} 6. Bd2 {[%emt 0:06:41]} a5 {[%emt 0:00:21]} 7. O-O {[%emt 0:00:19]} Nf6 {[%emt 0:00:27]} 8. a3 {[%emt 0:01:26]} Bc5 {[%emt 0:10:19]} 9. Bg5 {[%emt 0:02:32]} O-O {[%emt 0:10:55]} 10. Nbd2 {[%emt 0:00:34]} a4 {[%emt 0:12:44]} 11. Bxf6 {[%emt 0:27:19]} Qxf6 {[%emt 0:00:26]} 12. Ne4 {[%emt 0:00:17]} Qe7 {[%emt 0:00:05]} 13. Nfg5 {[%emt 0:07:41]} Ba7 {[%emt 0:12:09]} 14. f4 {[%emt 0:11:44]} f5 {[%emt 0:00:22]} 15. Nf2 {[%emt 0:00:58]} exf4 {[%emt 0:05:32]} 16. gxf4 {[%emt 0:00:23]} h6 {[%emt 0:00:13]} 17. Bd5+ {[%emt 0:00:35]} Kh8 {[%emt 0:00:02]} 18. Nf3 {[%emt 0:02:10]} Bc5 {[%emt 0:03:26]} 19. Kh1 {[%emt 0:02:47]} Qf6 {[%emt 0:03:24]} 20. Rg1 {[%emt 0:00:59]} Ne7 {[%emt 0:01:39]} 21. Ne5 {[%emt 0:02:01]} c6 {[%emt 0:00:12]} 22. Bf3 {[%emt 0:02:19]} Bd6 {[%emt 0:00:03]} 23. Qd2 {[%emt 0:02:56]} Bxe5 {[%emt 0:01:14]} 24. fxe5 {[%emt 0:00:07]} Qxe5 {[%emt 0:00:01]} 25. Rg2 {[%emt 0:01:11]} f4 {[%emt 0:07:05]} 26. Rag1 {[%emt 0:00:23]} Nf5 {[%emt 0:00:16]} 27. Be4 {[%emt 0:01:09]} Rg8 {[%emt 0:00:21]} 28. Ng4 {[%emt 0:00:33]} Qd6 {[%emt 0:00:05]} 29. Qe1 {[%emt 0:01:28]} Bd7 {[%emt 0:00:53]} 30. Qb4 {[%emt 0:02:39]} Qxb4 {[%emt 0:00:48]} 31. axb4 {[%emt 0:00:07]} Rae8 {[%emt 0:00:40]} 32. Rf2 {[%emt 0:00:16]} Nd6 {[%emt 0:00:33]} 33. Rxf4 {[%emt 0:00:52]} Nxe4 {[%emt 0:00:12]} 34. dxe4 {[%emt 0:00:12]} Rgf8 {[%emt 0:00:54]} 35. Rxf8+ {[%emt 0:00:51]} Rxf8 {[%emt 0:00:00]} 36. Ne5 {[%emt 0:00:17]} Be8 {[%emt 0:00:28]} 37. Rd1 {[%emt 0:00:19]} Bh5 {[%emt 0:00:50]} 38. Rxd4 {[%emt 0:00:16]} Rf2 {[%emt 0:00:40]} 39. Rd2 {[%emt 0:03:59]} Rf4 {[%emt 0:00:05]} 40. Rd4 {[%emt 0:00:00]} Kh7 {[%emt 0:00:49]} 41. Kg2 {[%emt 0:18:48]} Bxe2 {[%emt 0:00:51]} 42. c5 {[%emt 0:00:42]} Bb5 {[%emt 0:19:18]} 43. Nf3 {[%emt 0:01:16]} Be2 {[%emt 0:02:51]} 44. Ne5 {[%emt 0:03:21]} Ba6 {[%emt 0:02:11]} 45. Nf3 {[%emt 0:00:54]} g5 {[%emt 0:01:09]} 46. e5 {[%emt 0:15:09]} Rf8 {[%emt 0:05:39]} 47. Rd6 {[%emt 0:06:34]} Bc4 {[%emt 0:01:11]} 48. Nd4 {[%emt 0:02:28]} Bd5+ {[%emt 0:00:02]} 49. Kg1 {[%emt 0:01:51]} Rf4 {[%emt 0:00:12]} 50. Ne2 {[%emt 0:00:51]} Rxb4 {[%emt 0:00:41]} 51. Nc3 {[%emt 0:00:09]} Rxb2 {[%emt 0:00:33]} 52. Nxa4 {[%emt 0:00:14]} Rg2+ {[%emt 0:00:07]} 53. Kf1 {[%emt 0:00:11]} Rxh2 {[%emt 0:00:08]} 54. Nb6 {[%emt 0:01:42]} Rd2 {[%emt 0:01:11]} 55. e6 {[%emt 0:00:16]} Kg7 {[%emt 0:00:36]} 56. e7 {[%emt 0:00:38]} Kf7 {[%emt 0:00:50]} 57. Rxh6 {[%emt 0:01:00]} Kxe7 {[%emt 0:00:07]} 58. Rh7+ {[%emt 0:00:27]} Ke6 {[%emt 0:00:55]} 59. Rxb7 {[%emt 0:00:19]} Rc2 {[%emt 0:00:26]} 60. Nxd5 {[%emt 0:00:25]} cxd5 {[%emt 0:00:48]} 61. Rg7 {[%emt 0:00:42]} Kf5 {[%emt 0:00:25]} 62. Rc7 {[%emt 0:00:07]} Ke4 {[%emt 0:00:35]} 63. c6 {[%emt 0:00:37]} Kd3 {[%emt 0:00:39]} 64. Rg7 {[%emt 0:00:53]} Rc1+ {[%emt 0:00:25]} 65. Kf2 {[%emt 0:00:08]} Rxc6 {[%emt 0:00:11]} 66. Rxg5 {[%emt 0:00:07]} d4 {[%emt 0:00:06]} 67. Rd5 {[%emt 0:00:53]} Re6 {[%emt 0:00:33]} 68. Kf1 {[%emt 0:00:31]} Kc3 {[%emt 0:00:25]} 69. Ra5 {[%emt 0:01:02]} d3 {[%emt 0:00:08]} 70. Ra3+ {[%emt 0:00:11]} Kc2 {[%emt 0:00:06]} 71. Ra2+ {[%emt 0:00:22]} Kb3 {[%emt 0:00:24]} 72. Rh2 {[%emt 0:01:25]} Kc3 {[%emt 0:00:04]} 73. Ra2 {[%emt 0:00:36]} d2 {[%emt 0:00:07]} 74. Ra1 {[%emt 0:00:24]} Kb2 {[%emt 0:00:11]} 1-0